fUSD/lending_fUSD_20260703
["ID","MTS","AMOUNT","RATE_DAILY","PERIOD"]
[426924902,1783018249000,-62729.66244879,0.00036,2]
[426924900,1783018249000,-155.0,0.00036,30]
[426924904,1783018249000,-155.0,0.00036,30]
[426924903,1783018249000,-4286.04,0.00036,2]
[426924860,1783018249000,-500.0,0.00035616,7]
[426924883,1783018249000,-22500.0,0.00035938,2]
[426924882,1783018249000,-1802.72805844,0.000359,30]
[426924878,1783018249000,-572.150375,0.000358,30]
[426924879,1783018249000,-22500.0,0.00035813,2]
[426924859,1783018249000,-711.36152821,0.00035616,30]
[426924861,1783018249000,-172.84851787,0.00035616,60]
[426924856,1783018249000,-171748.65457846,0.0003561,2]
[426924862,1783018249000,-3739.0,0.00035616,120]
[426924863,1783018249000,-193.0,0.00035616,120]
[426924865,1783018249000,-151.0,0.00035616,30]
[426924876,1783018249000,-1500.0,0.00035799,2]
[426924855,1783018249000,-433.0,0.0003561,120]
[426924866,1783018249000,-22500.0,0.00035625,2]
[426924870,1783018249000,-1189.443,0.00035706,30]
[426924871,1783018249000,-403.84,0.00035723,3]
[426924864,1783018249000,-151.0,0.00035616,30]
[426924872,1783018249000,-194.57,0.0003575,69]
[426924873,1783018249000,-22500.0,0.0003575,2]
[426924867,1783018249000,-22500.0,0.00035688,2]
[426924875,1783018249000,-5000.0,0.00035761,2]
[426924874,1783018249000,-50000.0,0.00035753,15]
[426924868,1783018249000,-10063.21,0.00035695,14]
[426924869,1783018249000,-150.0,0.00035702,2]
[426924885,1783018249000,-114403.63526878,0.0003599,120]
[426924886,1783018249000,-609.09,0.00035992,2]
[426924877,1783018249000,-13465.86020687,0.000358,90]
[426924939,1783018250000,-678.14,0.00036038,2]
[426924940,1783018250000,-678.14,0.00036038,2]
[426924941,1783018250000,-678.14,0.0003604,2]
[426924938,1783018250000,-678.14,0.00036036,2]
[426924937,1783018250000,-678.14,0.00036034,2]
[426924942,1783018250000,-678.14,0.0003604,2]
[426924936,1783018250000,-172.84851787,0.00036008,60]
[426924933,1783018250000,-251.576067,0.00036,30]
[426924944,1783018250000,-678.14,0.00036042,2]
[426924947,1783018250000,-194.57,0.0003614,98]
[426924935,1783018250000,-386.111047,0.00036,30]
[426924951,1783018250000,-188.92540657,0.000362,120]
[426924970,1783018250000,-3648.06616662,0.00036256,8]
[426924949,1783018250000,-3023.88429561,0.0003618,30]
[426924946,1783018250000,-156.361387,0.00036139,104]
[426924948,1783018250000,-250.0,0.00036158,30]
[426924950,1783018250000,-187.60966565,0.000362,120]
[426924956,1783018250000,-543.96207015,0.000362,120]
[426924953,1783018250000,-168.20784832,0.000362,120]
[426924957,1783018250000,-186.89504541,0.000362,120]
[426924954,1783018250000,-166.1063884,0.000362,120]
[426924955,1783018250000,-199.67897868,0.000362,120]
[426924959,1783018250000,-177.86004915,0.000362,120]
[426924969,1783018250000,-3648.06616662,0.00036256,8]
[426924943,1783018250000,-678.18,0.00036042,2]
[426924945,1783018250000,-150.0,0.00036101,2]
[426924934,1783018250000,-1368.0,0.00036,7]
[426924906,1783018250000,-50151.96694724,0.00036,30]
[426924927,1783018250000,-1000.0,0.00036,2]
[426924908,1783018250000,-1608.0,0.00036,30]
[426924905,1783018250000,-157.0,0.00036,30]
[426924909,1783018250000,-9864.60375368,0.00036,5]
[426924907,1783018250000,-6126.640231,0.00036,30]
[426924911,1783018250000,-1739.43,0.00036,7]
[426924915,1783018250000,-10000.0,0.00036,120]
[426924914,1783018250000,-5000.0,0.00036,2]
[426924912,1783018250000,-176.6451122,0.00036,105]
[426924910,1783018250000,-184.5,0.00036,30]
[426924913,1783018250000,-29542.22024358,0.00036,14]
[426924916,1783018250000,-3352.40449974,0.00036,90]
[426924919,1783018250000,-3664.28772692,0.00036,20]
[426924918,1783018250000,-300000.0,0.00036,3]
[426924917,1783018250000,-21812.17379297,0.00036,30]
[426924921,1783018250000,-199.97379873,0.00036,120]
[426924920,1783018250000,-1293.40795003,0.00036,120]
[426924922,1783018250000,-151.0,0.00036,30]
[426924924,1783018250000,-151.0,0.00036,30]
[426924931,1783018250000,-251.576064,0.00036,30]
[426924923,1783018250000,-151.0,0.00036,30]
[426924929,1783018250000,-151.0,0.00036,30]
[426924932,1783018250000,-251.576064,0.00036,30]
[426924925,1783018250000,-588.56977862,0.00036,7]
[426924928,1783018250000,-223.84,0.00036,60]
[426924926,1783018250000,-2924.0,0.00036,120]
[426924930,1783018250000,-251.576064,0.00036,30]
[426924966,1783018250000,-3648.06616662,0.00036256,8]
[426924952,1783018250000,-168.72009272,0.000362,120]
[426924962,1783018250000,-3648.06616665,0.00036256,8]
[426924994,1783018250000,-500.0,0.00036326,120]
[426924992,1783018250000,-500.0,0.00036326,120]
[426924990,1783018250000,-500.0,0.00036326,120]
[426925000,1783018250000,-785.2457,0.00036326,60]
[426924999,1783018250000,-785.2457,0.00036326,60]
[426925001,1783018250000,-500.0,0.00036326,120]
[426924998,1783018250000,-785.2457,0.00036326,60]
[426925004,1783018250000,-500.0,0.00036326,120]
[426924997,1783018250000,-785.2457,0.00036326,60]
[426925003,1783018250000,-785.2457,0.00036326,60]
[426925006,1783018250000,-578.15090762,0.00036326,120]
[426925002,1783018250000,-500.0,0.00036326,120]
[426924991,1783018250000,-785.2457,0.00036326,60]
[426925008,1783018250000,-785.2457,0.00036326,60]
[426925007,1783018250000,-785.2457,0.00036326,60]
[426925010,1783018250000,-785.2457,0.00036326,60]
[426925014,1783018250000,-785.2457,0.00036326,60]
[426925017,1783018250000,-1250.03,0.0003635,2]
[426925015,1783018250000,-785.2457,0.00036326,60]
[426925011,1783018250000,-785.2457,0.00036326,60]
[426925012,1783018250000,-785.2457,0.00036326,60]
[426925013,1783018250000,-785.2457,0.00036326,60]
[426925016,1783018250000,-785.24663469,0.00036326,60]
[426925019,1783018250000,-349.20460623,0.00036377,120]
[426925018,1783018250000,-632.64200751,0.00036377,120]
[426924964,1783018250000,-3648.06616662,0.00036256,8]
[426925009,1783018250000,-785.2457,0.00036326,60]
[426924993,1783018250000,-785.2457,0.00036326,60]
[426925005,1783018250000,-785.2457,0.00036326,60]
[426924987,1783018250000,-227.89821908,0.000363,120]
[426924989,1783018250000,-785.2457,0.00036326,60]
[426924965,1783018250000,-3648.06616662,0.00036256,8]
[426924963,1783018250000,-3648.06616662,0.00036256,8]
[426924967,1783018250000,-3648.06616662,0.00036256,8]
[426924958,1783018250000,-183.54174638,0.000362,120]
[426924961,1783018250000,-375.86,0.00036255,10]
[426924960,1783018250000,-192.21237176,0.000362,120]
[426924971,1783018250000,-3648.06616662,0.00036256,8]
[426925020,1783018250000,-10063.21,0.0003638,14]
[426924975,1783018250000,-573.993131,0.00036256,30]
[426924974,1783018250000,-3648.06616662,0.00036256,8]
[426924976,1783018250000,-573.993131,0.00036256,30]
[426924982,1783018250000,-179.361022,0.00036256,7]
[426924968,1783018250000,-3648.06616662,0.00036256,8]
[426924981,1783018250000,-179.361022,0.00036256,7]
[426924980,1783018250000,-179.361022,0.00036256,7]
[426924988,1783018250000,-8583.0,0.00036318,10]
[426924986,1783018250000,-215.49010706,0.000363,120]
[426924984,1783018250000,-248.14769499,0.00036282,2]
[426924996,1783018250000,-500.0,0.00036326,120]
[426924985,1783018250000,-790.50869764,0.0003629,11]
[426924995,1783018250000,-785.2457,0.00036326,60]
[426924979,1783018250000,-179.361022,0.00036256,7]
[426924977,1783018250000,-573.993131,0.00036256,30]
[426924972,1783018250000,-3648.06616662,0.00036256,8]
[426924978,1783018250000,-573.993131,0.00036256,30]
[426924983,1783018250000,-269.34108273,0.00036282,2]
[426925057,1783018251000,-169.00435228,0.00036416,30]
[426925063,1783018251000,-169.00435228,0.00036416,30]
[426925058,1783018251000,-169.00435228,0.00036416,30]
[426925052,1783018251000,-151.0,0.00036416,30]
[426925061,1783018251000,-169.00435228,0.00036416,30]
[426925053,1783018251000,-151.0,0.00036416,30]
[426925056,1783018251000,-169.00435228,0.00036416,30]
[426925055,1783018251000,-216.32009814,0.00036416,30]
[426925054,1783018251000,-151.0,0.00036416,30]
[426925062,1783018251000,-169.00435228,0.00036416,30]
[426925060,1783018251000,-169.00435228,0.00036416,30]
[426925059,1783018251000,-169.00435228,0.00036416,30]
[426925068,1783018251000,-169.00435228,0.00036416,30]
[426925074,1783018251000,-169.00435228,0.00036416,30]
[426925064,1783018251000,-169.00435228,0.00036416,30]
[426925073,1783018251000,-169.00435228,0.00036416,30]
[426925075,1783018251000,-169.00435245,0.00036416,30]
[426925066,1783018251000,-169.00435228,0.00036416,30]
[426925070,1783018251000,-169.00435228,0.00036416,30]
[426925071,1783018251000,-169.00435228,0.00036416,30]
[426925072,1783018251000,-169.00435228,0.00036416,30]
[426925069,1783018251000,-169.00435228,0.00036416,30]
[426925067,1783018251000,-169.00435228,0.00036416,30]
[426925076,1783018251000,-157.073915,0.00036434,2]
[426925050,1783018251000,-151.0,0.00036416,30]
[426925065,1783018251000,-169.00435228,0.00036416,30]
[426925046,1783018251000,-166.62130439,0.00036416,30]
[426925029,1783018251000,-172.84851787,0.00036399,60]
[426925043,1783018251000,-3126.56879011,0.00036416,30]
[426925021,1783018251000,-16446.4810987,0.00036382,2]
[426925028,1783018251000,-1707.94,0.00036396,14]
[426925024,1783018251000,-150.0,0.00036384,30]
[426925023,1783018251000,-577530.8326433,0.00036382,2]
[426925022,1783018251000,-3392.9714535,0.00036382,2]
[426925027,1783018251000,-518.9063685,0.00036384,30]
[426925026,1783018251000,-150.0,0.00036384,30]
[426925025,1783018251000,-778.34351277,0.00036384,30]
[426925031,1783018251000,-3136.87961408,0.000364,7]
[426925030,1783018251000,-146120.41789669,0.000364,2]
[426925032,1783018251000,-334.3679579,0.000364,2]
[426925039,1783018251000,-182.84375536,0.00036416,30]
[426925045,1783018251000,-166.62130438,0.00036416,30]
[426925036,1783018251000,-383.56,0.00036406,30]
[426925035,1783018251000,-891.89,0.00036405,30]
[426925038,1783018251000,-195.79497764,0.00036416,30]
[426925034,1783018251000,-8864.0,0.000364,5]
[426925040,1783018251000,-1350.12568393,0.00036416,30]
[426925037,1783018251000,-270.0,0.00036414,5]
[426925051,1783018251000,-151.0,0.00036416,30]
[426925041,1783018251000,-182.84375536,0.00036416,30]
[426925042,1783018251000,-612.81233222,0.00036416,30]
[426925044,1783018251000,-166.62130438,0.00036416,30]
[426925048,1783018251000,-151.0,0.00036416,30]
[426925047,1783018251000,-151.0,0.00036416,30]
[426925049,1783018251000,-151.0,0.00036416,30]
[426925033,1783018251000,-157.073915,0.000364,2]
[426925078,1783018251000,-158.364397,0.0003644,107]
[426925077,1783018251000,-3072.55449052,0.00036434,120]
[426925081,1783018251000,-151.13538036,0.00036482,2]
[426925121,1783018251000,-194.57,0.0003653,114]
[426925110,1783018251000,-1800.0,0.00036519,2]
[426925112,1783018251000,-1800.0,0.00036519,2]
[426925113,1783018251000,-1800.0,0.00036519,2]
[426925114,1783018251000,-1800.0,0.00036519,2]
[426925117,1783018251000,-1800.0,0.00036519,2]
[426925115,1783018251000,-1800.0,0.00036519,2]
[426925116,1783018251000,-1800.0,0.00036519,2]
[426925120,1783018251000,-461.0,0.00036519,2]
[426925119,1783018251000,-1800.0,0.00036519,2]
[426925118,1783018251000,-1800.0,0.00036519,2]
[426925123,1783018251000,-700.0,0.0003657,2]
[426925111,1783018251000,-1800.0,0.00036519,2]
[426925134,1783018251000,-500.0,0.00036599,7]
[426925128,1783018251000,-500.0,0.00036599,7]
[426925129,1783018251000,-500.0,0.00036599,7]
[426925124,1783018251000,-22622.96693954,0.00036599,30]
[426925132,1783018251000,-500.0,0.00036599,7]
[426925125,1783018251000,-78437.27803927,0.00036599,7]
[426925131,1783018251000,-500.0,0.00036599,7]
[426925127,1783018251000,-500.0,0.00036599,7]
[426925126,1783018251000,-188.93987,0.00036599,80]
[426925130,1783018251000,-500.0,0.00036599,7]
[426925135,1783018251000,-4372942.09268898,0.000366,120]
[426925136,1783018251000,-7062.75001345,0.000366,120]
[426925079,1783018251000,-157.073916,0.00036468,2]
[426925133,1783018251000,-500.0,0.00036599,7]
[426925108,1783018251000,-1800.0,0.00036519,2]
[426925122,1783018251000,-300.0,0.0003657,2]
[426925105,1783018251000,-1800.0,0.00036519,2]
[426925082,1783018251000,-500.0,0.00036482,2]
[426925107,1783018251000,-1800.0,0.00036519,2]
[426925084,1783018251000,-44668.97712571,0.00036499,2]
[426925083,1783018251000,-433.0,0.0003649,120]
[426925085,1783018251000,-198.98744246,0.000365,2]
[426925086,1783018251000,-151.87927038,0.000365,2]
[426925080,1783018251000,-434.83,0.0003648,120]
[426925098,1783018251000,-1800.0,0.00036519,2]
[426925089,1783018251000,-36014.93015063,0.000365,30]
[426925090,1783018251000,-196.44,0.000365,34]
[426925087,1783018251000,-242159.57990203,0.000365,36]
[426925092,1783018251000,-321.64106885,0.000365,15]
[426925091,1783018251000,-223.16133556,0.000365,120]
[426925088,1783018251000,-200.0,0.000365,14]
[426925096,1783018251000,-182.73203354,0.00036502,2]
[426925109,1783018251000,-1800.0,0.00036519,2]
[426925097,1783018251000,-1800.0,0.00036519,2]
[426925104,1783018251000,-1800.0,0.00036519,2]
[426925101,1783018251000,-1800.0,0.00036519,2]
[426925103,1783018251000,-1800.0,0.00036519,2]
[426925100,1783018251000,-1800.0,0.00036519,2]
[426925106,1783018251000,-1800.0,0.00036519,2]
[426925099,1783018251000,-1800.0,0.00036519,2]
[426925094,1783018251000,-151348.31,0.000365,30]
[426925093,1783018251000,-3066.215558,0.000365,120]
[426925095,1783018251000,-157.073916,0.00036502,2]
[426925102,1783018251000,-1800.0,0.00036519,2]
[426925174,1783018252000,-244.23,0.00036653,30]
[426925177,1783018252000,-407.95,0.0003666,120]
[426925178,1783018252000,-5000.0,0.00036668,7]
[426925179,1783018252000,-5000.0,0.00036678,7]
[426925176,1783018252000,-3000.0,0.0003666,120]
[426925168,1783018252000,-786.0,0.00036623,2]
[426925173,1783018252000,-198.98744246,0.0003665,2]
[426925170,1783018252000,-5000.0,0.00036632,2]
[426925164,1783018252000,-350.0,0.00036606,3]
[426925169,1783018252000,-5000.0,0.00036629,7]
[426925184,1783018252000,-334.399294,0.000367,7]
[426925175,1783018252000,-5000.0,0.00036658,7]
[426925185,1783018252000,-310.399292,0.000367,7]
[426925193,1783018252000,-310.399292,0.000367,14]
[426925180,1783018252000,-240.43,0.00036683,120]
[426925182,1783018252000,-169.93,0.00036697,2]
[426925181,1783018252000,-5000.0,0.00036688,7]
[426925196,1783018252000,-310.399292,0.000367,14]
[426925186,1783018252000,-307.399292,0.000367,7]
[426925198,1783018252000,-313.399292,0.000367,14]
[426925187,1783018252000,-313.399292,0.000367,7]
[426925197,1783018252000,-307.399292,0.000367,14]
[426925190,1783018252000,-313.399292,0.000367,7]
[426925189,1783018252000,-307.399292,0.000367,7]
[426925192,1783018252000,-334.399293,0.000367,14]
[426925166,1783018252000,-5000.0,0.00036619,7]
[426925183,1783018252000,-5000.0,0.00036697,7]
[426925167,1783018252000,-786.0,0.00036623,2]
[426925145,1783018252000,-8216.692555,0.000366,30]
[426925163,1783018252000,-358.59,0.00036602,120]
[426925146,1783018252000,-153.0,0.000366,30]
[426925138,1783018252000,-1806.138,0.000366,120]
[426925139,1783018252000,-1806.14,0.000366,120]
[426925137,1783018252000,-1806.138,0.000366,60]
[426925141,1783018252000,-3148.3,0.000366,31]
[426925140,1783018252000,-5274.4,0.000366,120]
[426925144,1783018252000,-50444.5465296,0.000366,20]
[426925142,1783018252000,-10000.0,0.000366,15]
[426925143,1783018252000,-8136.30754325,0.000366,120]
[426925147,1783018252000,-152.0,0.000366,30]
[426925149,1783018252000,-151.0,0.000366,28]
[426925148,1783018252000,-170.432373,0.000366,30]
[426925157,1783018252000,-179.361022,0.000366,7]
[426925155,1783018252000,-573.993123,0.000366,30]
[426925152,1783018252000,-573.993131,0.000366,30]
[426925156,1783018252000,-179.361022,0.000366,7]
[426925150,1783018252000,-151.0,0.000366,30]
[426925159,1783018252000,-179.36103,0.000366,7]
[426925151,1783018252000,-2110.0,0.000366,2]
[426925154,1783018252000,-573.993131,0.000366,30]
[426925158,1783018252000,-179.361022,0.000366,7]
[426925153,1783018252000,-573.993131,0.000366,30]
[426925161,1783018252000,-152.0,0.000366,30]
[426925171,1783018252000,-5000.0,0.00036639,7]
[426925160,1783018252000,-200.0,0.000366,2]
[426925172,1783018252000,-5000.0,0.00036648,7]
[426925162,1783018252000,-5000.0,0.00036602,7]
[426925165,1783018252000,-5000.0,0.00036609,7]
[426925195,1783018252000,-313.399292,0.000367,14]
[426925209,1783018252000,-1906.5841,0.000367,120]
[426925191,1783018252000,-310.399292,0.000367,7]
[426925227,1783018252000,-335.524764,0.000367,7]
[426925231,1783018252000,-332.524764,0.000367,7]
[426925234,1783018252000,-332.524764,0.000367,7]
[426925232,1783018252000,-338.524764,0.000367,7]
[426925236,1783018252000,-335.524764,0.000367,7]
[426925235,1783018252000,-338.524764,0.000367,7]
[426925241,1783018252000,-338.524764,0.000367,7]
[426925240,1783018252000,-332.524764,0.000367,7]
[426925233,1783018252000,-335.524764,0.000367,7]
[426925239,1783018252000,-335.524764,0.000367,7]
[426925237,1783018252000,-332.524764,0.000367,7]
[426925242,1783018252000,-335.524764,0.000367,7]
[426925238,1783018252000,-338.524764,0.000367,7]
[426925244,1783018252000,-338.524764,0.000367,7]
[426925254,1783018252000,-332.524764,0.000367,14]
[426925245,1783018252000,-335.524764,0.000367,7]
[426925246,1783018252000,-422.524776,0.000367,14]
[426925243,1783018252000,-332.524764,0.000367,7]
[426925247,1783018252000,-335.524764,0.000367,14]
[426925248,1783018252000,-332.524764,0.000367,14]
[426925251,1783018252000,-332.524764,0.000367,14]
[426925252,1783018252000,-338.524764,0.000367,14]
[426925249,1783018252000,-338.524764,0.000367,14]
[426925253,1783018252000,-335.524764,0.000367,14]
[426925250,1783018252000,-335.524764,0.000367,14]
[426925256,1783018252000,-335.524764,0.000367,14]
[426925188,1783018252000,-310.399292,0.000367,7]
[426925228,1783018252000,-332.524764,0.000367,7]
[426925230,1783018252000,-335.524764,0.000367,7]
[426925255,1783018252000,-338.524764,0.000367,14]
[426925229,1783018252000,-338.524764,0.000367,7]
[426925226,1783018252000,-338.524764,0.000367,7]
[426925194,1783018252000,-307.399292,0.000367,14]
[426925199,1783018252000,-310.399292,0.000367,14]
[426925207,1783018252000,-176.72017531,0.000367,60]
[426925205,1783018252000,-159.2696,0.000367,120]
[426925204,1783018252000,-185.10272502,0.000367,120]
[426925202,1783018252000,-321.680751,0.000367,14]
[426925208,1783018252000,-283.41348287,0.000367,30]
[426925211,1783018252000,-1298.551,0.000367,60]
[426925200,1783018252000,-321.680752,0.000367,7]
[426925203,1783018252000,-315.680751,0.000367,14]
[426925201,1783018252000,-315.680751,0.000367,7]
[426925210,1783018252000,-150.01962125,0.000367,60]
[426925206,1783018252000,-159.2696,0.000367,120]
[426925214,1783018252000,-2089.8464,0.000367,120]
[426925225,1783018252000,-332.524764,0.000367,7]
[426925213,1783018252000,-151.40104142,0.000367,120]
[426925222,1783018252000,-332.524764,0.000367,7]
[426925224,1783018252000,-335.524764,0.000367,7]
[426925223,1783018252000,-338.524764,0.000367,7]
[426925221,1783018252000,-335.524764,0.000367,7]
[426925220,1783018252000,-338.524764,0.000367,7]
[426925215,1783018252000,-105500.0,0.000367,30]
[426925219,1783018252000,-332.524764,0.000367,7]
[426925218,1783018252000,-335.524764,0.000367,7]
[426925216,1783018252000,-600.0,0.000367,13]
[426925212,1783018252000,-1298.55,0.000367,60]
[426925217,1783018252000,-422.524777,0.000367,7]
[426925278,1783018253000,-5887.84634536,0.00036716,30]
[426925287,1783018253000,-10000.0,0.00036749,120]
[426925277,1783018253000,-178.7365535,0.00036712,60]
[426925276,1783018253000,-5000.0,0.00036707,7]
[426925281,1783018253000,-219.95609652,0.00036728,120]
[426925283,1783018253000,-405.17745373,0.00036731,30]
[426925286,1783018253000,-160.367407,0.00036741,111]
[426925290,1783018253000,-5000.0,0.00036753,2]
[426925282,1783018253000,-1222.77733505,0.00036728,30]
[426925285,1783018253000,-387.67,0.00036737,3]
[426925292,1783018253000,-3648.06616662,0.00036757,9]
[426925288,1783018253000,-5000.0,0.0003675,2]
[426925289,1783018253000,-5190.91070344,0.0003675,60]
[426925291,1783018253000,-156.22,0.00036753,2]
[426925271,1783018253000,-335.524764,0.000367,14]
[426925293,1783018253000,-331.76187016,0.00036759,20]
[426925284,1783018253000,-324.84,0.00036733,41]
[426925270,1783018253000,-338.524764,0.000367,14]
[426925265,1783018253000,-335.524764,0.000367,14]
[426925274,1783018253000,-335.524764,0.000367,14]
[426925297,1783018253000,-914.09128627,0.00036761,120]
[426925259,1783018253000,-335.524764,0.000367,14]
[426925258,1783018253000,-338.524764,0.000367,14]
[426925260,1783018253000,-332.524764,0.000367,14]
[426925261,1783018253000,-338.524764,0.000367,14]
[426925266,1783018253000,-332.524764,0.000367,14]
[426925264,1783018253000,-338.524764,0.000367,14]
[426925273,1783018253000,-338.524764,0.000367,14]
[426925267,1783018253000,-338.524764,0.000367,14]
[426925263,1783018253000,-332.524764,0.000367,14]
[426925262,1783018253000,-335.524764,0.000367,14]
[426925269,1783018253000,-332.524764,0.000367,14]
[426925280,1783018253000,-222.30560764,0.00036728,120]
[426925279,1783018253000,-187.83103457,0.00036727,2]
[426925268,1783018253000,-335.524764,0.000367,14]
[426925272,1783018253000,-332.524764,0.000367,14]
[426925257,1783018253000,-332.524764,0.000367,14]
[426925304,1783018253000,-528.47179619,0.00036795,30]
[426925275,1783018253000,-5000.0,0.00036704,7]
[426925298,1783018253000,-457.04564313,0.00036761,120]
[426925328,1783018253000,-5787.54929004,0.00036801,30]
[426925318,1783018253000,-376.0,0.000368,7]
[426925319,1783018253000,-7240.0,0.000368,120]
[426925317,1783018253000,-1126140.0,0.000368,7]
[426925320,1783018253000,-1261.0,0.000368,7]
[426925325,1783018253000,-151.0,0.000368,28]
[426925322,1783018253000,-11217.26627367,0.000368,30]
[426925329,1783018253000,-3000.0,0.00036807,30]
[426925323,1783018253000,-1655.45126465,0.000368,120]
[426925327,1783018253000,-1361.0,0.000368,13]
[426925326,1783018253000,-151.0,0.000368,30]
[426925330,1783018253000,-725.0,0.00036809,7]
[426925332,1783018253000,-153071.04499616,0.0003681,45]
[426925331,1783018253000,-200000.0,0.0003681,95]
[426925333,1783018253000,-178701.80652514,0.00036811,92]
[426925303,1783018253000,-172.84851787,0.00036791,60]
[426925321,1783018253000,-2114.75948087,0.000368,120]
[426925311,1783018253000,-200000.0,0.000368,90]
[426925324,1783018253000,-198.98744246,0.000368,2]
[426925334,1783018253000,-497.89224089,0.00014844,2]
[426925313,1783018253000,-5000.0,0.000368,14]
[426925294,1783018253000,-5000.0,0.0003676,2]
[426925295,1783018253000,-5000.0,0.0003676,2]
[426925296,1783018253000,-2311.26624479,0.0003676,120]
[426925302,1783018253000,-1049.2,0.00036781,7]
[426925299,1783018253000,-241.86388881,0.00036761,120]
[426925300,1783018253000,-161.23931092,0.00036778,30]
[426925316,1783018253000,-5000.0,0.000368,90]
[426925306,1783018253000,-233.44,0.00036798,30]
[426925301,1783018253000,-119656.00105465,0.0003678,30]
[426925305,1783018253000,-687.45270506,0.00036797,30]
[426925309,1783018253000,-245.75843918,0.00036799,120]
[426925308,1783018253000,-18094.05432307,0.00036799,120]
[426925310,1783018253000,-472.85177146,0.00036799,120]
[426925315,1783018253000,-1741.84,0.000368,120]
[426925307,1783018253000,-188.93988,0.00036799,80]
[426925314,1783018253000,-20659.95,0.000368,120]
[426925312,1783018253000,-1647.03203883,0.000368,2]
[426925355,1783018254000,-543.18939606,0.0003199,10]
[426925356,1783018254000,-1134.28,0.0003199,10]
[426925350,1783018254000,-599.67825655,0.000299,2]
[426925348,1783018254000,-169.44,0.00029,7]
[426925349,1783018254000,-599.67825655,0.000299,2]
[426925346,1783018254000,-941.29,0.00028205,7]
[426925347,1783018254000,-941.29,0.00028364,2]
[426925344,1783018254000,-941.29,0.00027887,2]
[426925335,1783018254000,-618.21,0.00014844,2]
[426925341,1783018254000,-941.29,0.00027569,30]
[426925342,1783018254000,-169.43,0.00027588,30]
[426925339,1783018254000,-386.111047,0.00027397,2]
[426925336,1783018254000,-7790.60543027,0.00014844,2]
[426925340,1783018254000,-386.111047,0.00027397,2]
[426925338,1783018254000,-386.111047,0.00027397,2]
[426925337,1783018254000,-8906.70767116,0.00014856,2]
[426925352,1783018254000,-386.111047,0.000301,7]
[426925345,1783018254000,-941.29,0.00028046,30]
[426925351,1783018254000,-386.111047,0.000301,7]
[426925343,1783018254000,-941.29,0.00027728,7]
[426925353,1783018254000,-386.111047,0.000301,7]
[426925374,1783018254000,-5681.62131353,0.0003401,2]
[426925373,1783018254000,-597.3150425,0.00033538,2]
[426925372,1783018254000,-564.57560998,0.00033538,2]
[426925371,1783018254000,-954.40977015,0.00033538,2]
[426925370,1783018254000,-529.6723478,0.00033538,2]
[426925368,1783018254000,-300.0,0.00033538,2]
[426925369,1783018254000,-345.80256672,0.00033538,2]
[426925364,1783018254000,-386.111047,0.0003298,7]
[426925367,1783018254000,-300.0,0.00033538,2]
[426925354,1783018254000,-6089.0,0.0003101,2]
[426925361,1783018254000,-1000.0,0.00032697,36]
[426925362,1783018254000,-386.111047,0.0003298,7]
[426925363,1783018254000,-386.111047,0.0003298,7]
[426925365,1783018254000,-902.28,0.00033205,50]
[426925359,1783018254000,-7208.18060394,0.0003199,10]
[426925358,1783018254000,-599.67825655,0.000299,2]
[426925360,1783018254000,-1000.0,0.0003267,36]
[426925357,1783018254000,-8906.70767116,0.00014867,2]
[426925366,1783018254000,-300.0,0.00033538,2]